bitfinex/quotes_ETHUSD_20230113
["timestamp","ask_amount","ask_price","bid_price","bid_amount"]
[1673599370458,0.3188271,1408.6,1408.5,39.24048514]
[1673599370743,0.3188271,1408.6,1408.5,40.3025755]
[1673599371104,0.3188271,1408.6,1408.5,39.24048514]
[1673599371319,0.3188271,1408.6,1408.5,40.30273935]
[1673599371529,0.3188271,1408.6,1408.5,39.24048514]
[1673599371774,0.3188271,1408.6,1408.5,40.30274685]
[1673599371964,0.3188271,1408.6,1408.5,40.30274768]
[1673599372174,0.3188271,1408.6,1408.5,39.24048514]
[1673599373050,0.31602179,1408.6,1408.5,39.24048514]
[1673599374164,0.31602179,1408.6,1408.5,41.36381961]
[1673599375157,0.31602179,1408.6,1408.5,39.77226284]
[1673599375346,0.31602179,1408.6,1408.5,42.42824273]
[1673599377117,0.31602179,1408.6,1408.5,41.01442153]
[1673599377485,0.31602179,1408.6,1408.5,43.13964315]
[1673599378411,0.31602179,1408.6,1408.5,42.43012988]
[1673599378774,0.31602179,1408.6,1408.5,43.13964315]
[1673599380570,0.31602179,1408.6,1408.5,41.01442153]
[1673599381245,0.31602179,1408.6,1408.5,43.13942046]
[1673599382364,0.31602179,1408.6,1408.5,42.42990719]
[1673599382575,29.91041638,1408.9,1408.5,42.42990719]
[1673599382802,34.43551322,1408.9,1408.7,1.06253653]
[1673599383023,34.43551322,1408.9,1408.7,17.02061903]
[1673599383351,34.43551322,1408.9,1408.8,1.76075548]
[1673599383569,34.43551322,1408.9,1408.7,14.263]
[1673599383722,34.43551322,1408.9,1408.7,15.25953653]
[1673599384187,34.43551322,1408.9,1408.7,14.197]
[1673599384379,34.43551322,1408.9,1408.7,15.25953653]
[1673599385107,34.43551322,1408.9,1408.7,14.197]
[1673599385319,34.43551322,1408.9,1408.7,15.25953653]
[1673599385663,34.43551322,1408.9,1408.7,14.197]
[1673599385868,29.91041638,1408.9,1408.7,14.197]
[1673599386081,29.70317109,1408.9,1408.8,1.76073822]
[1673599386239,29.70317109,1408.9,1408.8,8.85896822]
[1673599386664,9.97347109,1408.9,1408.8,8.85896822]
[1673599387321,1.25547001,1408.9,1408.8,8.85896822]
[1673599387505,1.15647001,1408.9,1408.8,8.85896822]
[1673599387944,1.15647001,1408.9,1408.7,22.42399653]
[1673599388153,1.15647001,1408.9,1408.8,1.76075538]
[1673599388401,1.67464261,1408.9,1408.8,1.76075538]
[1673599389215,1.67464261,1408.9,1408.8,8.85898538]
[1673599390671,1.67464261,1408.9,1408.8,1.76075538]
[1673599391335,1.67464261,1408.9,1408.7,21.36136]
[1673599391531,1.67464261,1408.9,1408.7,21.29536]
[1673599391964,1.67464261,1408.9,1408.7,22.35789653]
[1673599392196,1.67464261,1408.9,1408.7,21.29536]
[1673599392362,1.15647001,1408.9,1408.7,22.35789653]
[1673599393095,1.15647001,1408.9,1408.7,21.29536]
[1673599393302,1.15647001,1408.9,1408.7,22.35789653]
[1673599395664,1.15647001,1408.9,1408.7,21.29536]
[1673599396085,1.15647001,1408.9,1408.7,21.29736]
[1673599396296,1.15647001,1408.9,1408.7,21.29536]
[1673599397243,3.28130187,1408.9,1408.7,21.29536]
[1673599397561,1.68454261,1408.9,1408.7,21.29536]
[1673599402337,1.15647001,1408.9,1408.7,21.29536]
[1673599403078,1.15647001,1408.9,1408.7,22.35789653]
[1673599403286,1.15647001,1408.9,1408.7,21.29536]
[1673599403709,1.15647001,1408.9,1408.7,7.09836]
[1673599403946,2.75322927,1408.9,1408.6,25.94964995]
[1673599404285,4.41658032,1408.9,1408.7,1.76082753]
[1673599404458,1.06450881,1408.8,1408.7,1.76082753]
[1673599406380,1.06450881,1408.8,1408.7,1.75770806]
[1673599409216,4.51558032,1408.9,1408.7,2.82024459]
[1673599409427,4.41658032,1408.9,1408.7,2.82024459]
[1673599410269,1.06450881,1408.8,1408.7,1.75770806]
[1673599410612,4.51558032,1408.9,1408.7,1.06253653]
[1673599410764,4.41658032,1408.9,1408.7,1.06253653]
[1673599410974,4.41658032,1408.9,1408.6,18.85054995]
[1673599411190,4.41658032,1408.9,1408.7,1.06253653]
[1673599411191,1.06450881,1408.8,1408.7,1.06253653]
[1673599412376,1.06450881,1408.8,1408.6,18.85054995]
[1673599412597,1.06450881,1408.8,1408.6,18.78454995]
[1673599412953,1.06450881,1408.8,1408.6,16.36172405]
[1673599413212,1.06450881,1408.8,1408.6,15.17821723]
[1673599413374,3.41883518,1408.8,1408.6,5.65634133]
[1673599413583,3.41883518,1408.8,1408.6,4.06253653]
[1673599413827,3.41883518,1408.8,1408.6,12.75552133]
[1673599414430,1.06450881,1408.8,1408.6,19.85476133]
[1673599414962,14.57502927,1408.9,1408.7,8.16127653]
[1673599418155,14.57502927,1408.9,1408.7,15.26001653]
[1673599419100,12.97827001,1408.9,1408.7,15.26001653]
[1673599419478,14.57502927,1408.9,1408.7,15.26001653]
[1673599419688,12.97827001,1408.9,1408.7,15.26001653]
[1673599420249,14.57502927,1408.9,1408.7,15.26001653]
[1673599420881,12.97827001,1408.9,1408.7,15.26001653]
[1673599421042,14.57502927,1408.9,1408.7,15.26001653]
[1673599421717,12.97827001,1408.9,1408.7,15.26001653]
[1673599421882,14.57502927,1408.9,1408.7,15.26001653]
[1673599422097,1.06450881,1408.8,1408.7,7.09874]
[1673599422330,1.06450881,1408.8,1408.7,3.0]
[1673599425878,1.07906936,1408.8,1408.7,0.002]
[1673599426197,1.07906936,1408.8,1408.6,4.06253653]
[1673599426407,4.96900718,1408.8,1408.7,1.76089832]
[1673599426616,5.17615056,1408.8,1408.7,1.76089832]
[1673599426877,6.87190982,1408.8,1408.7,1.76089832]
[1673599428195,13.97013982,1408.8,1408.7,1.76089832]
[1673599430028,15.48713982,1408.8,1408.7,1.76089832]
[1673599430204,15.48713982,1408.8,1408.6,4.12853653]
[1673599430403,15.48713982,1408.8,1408.6,4.06253653]
[1673599430763,1.54871398,1408.7,1408.6,4.06253653]
[1673599431084,15.48713982,1408.8,1408.6,5.82347045]
[1673599431238,15.48713982,1408.8,1408.6,4.06253653]
[1673599431600,15.48713982,1408.8,1408.7,1.76090346]
[1673599431601,13.89038056,1408.8,1408.7,1.76090346]
[1673599431810,13.68323718,1408.8,1408.7,1.76090346]
[1673599432720,12.16623718,1408.8,1408.7,1.76090346]
[1673599435078,12.40618922,1408.8,1408.7,1.76090346]
[1673599435649,12.16623718,1408.8,1408.7,1.76090346]
[1673599436742,12.40618709,1408.8,1408.7,1.76090346]
[1673599437438,14.00294635,1408.8,1408.7,1.76090346]
[1673599438329,12.40618709,1408.8,1408.7,1.76090346]
[1673599439020,19.50441709,1408.8,1408.7,1.76090346]
[1673599440319,21.10117635,1408.8,1408.7,1.76090346]
[1673599441702,19.50441709,1408.8,1408.7,1.76090346]
[1673599442375,21.10117635,1408.8,1408.7,1.76090346]
[1673599442586,19.50441709,1408.8,1408.7,1.76090346]
[1673599442792,5.29339654,1408.8,1408.7,1.76090346]
[1673599443041,1.16350881,1408.8,1408.7,1.76090346]
[1673599443216,1.06450881,1408.8,1408.7,1.76090346]
[1673599444059,1.30466166,1408.8,1408.7,1.76090346]
[1673599444488,2.90142092,1408.8,1408.7,1.76090346]
[1673599444961,1.30466166,1408.8,1408.6,2.82343999]
[1673599445123,14.81067137,1408.8,1408.7,1.76090346]
[1673599445333,28.80388565,1408.8,1408.5,9.29393653]
[1673599445697,28.80388565,1408.8,1408.4,4.5938048]
[1673599445698,1.29251183,1408.5,1408.4,5.72234133]
[1673599445910,1.29251183,1408.5,1408.4,7.41742176]
[1673599446060,1.29251183,1408.5,1408.4,6.35488523]
[1673599446275,1.29251183,1408.5,1408.4,7.41734779]
[1673599446536,1.29251183,1408.5,1408.4,2.82354299]
[1673599448244,2.95794747,1408.5,1408.4,2.82354299]
[1673599448530,2.95794747,1408.5,1408.4,1.76108043]
[1673599448743,10.05769747,1408.5,1408.4,1.76108043]
[1673599448961,3.05694747,1408.5,1408.4,1.76108043]
[1673599449185,8.39226183,1408.5,1408.4,1.76108043]
[1673599449325,8.49126183,1408.5,1408.4,1.76108043]
[1673599450844,7.19875,1408.5,1408.4,1.76108043]
[1673599454082,7.19875,1408.5,1408.3,9.00896256]
[1673599454309,7.19875,1408.5,1408.2,10.65227846]
[1673599454310,11.45430452,1408.5,1408.2,10.65227846]
[1673599454477,20.80023898,1408.5,1408.3,1.76128146]
[1673599454687,20.80023898,1408.5,1408.2,1.06246256]
[1673599454893,20.80023898,1408.5,1408.2,5.82374796]
[1673599455142,20.80023898,1408.5,1408.3,1.7612854]
[1673599455474,4.0800239,1408.4,1408.3,1.7612854]
[1673599455778,2.0800239,1408.4,1408.3,1.7612854]
[1673599456208,23.64486446,1408.5,1408.3,1.7612854]
[1673599457941,23.65942501,1408.5,1408.3,1.7612854]
[1673599460810,23.65942501,1408.5,1408.2,4.12846256]
[1673599461017,23.65942501,1408.5,1408.2,1.06246256]
[1673599461229,23.65942501,1408.5,1408.2,2.82375816]
[1673599461437,23.65942501,1408.5,1408.1,34.20805326]
[1673599461682,39.62147953,1408.5,1408.2,1.76133417]
[1673599461874,5.96214795,1408.4,1408.2,2.82379673]
[1673599462088,2.099,1408.4,1408.2,2.82379673]
[1673599462302,2.0,1408.4,1408.1,34.20805326]
[1673599462489,28.26574501,1408.5,1408.2,1.76131266]
[1673599463571,28.26574501,1408.5,1408.2,2.82377522]
[1673599463799,33.11974055,1408.5,1408.2,2.82377522]
[1673599465421,11.82006055,1408.5,1408.2,11.51880002]
[1673599465649,11.82006055,1408.5,1408.3,2.82377522]
[1673599466063,18.91989055,1408.5,1408.3,2.82377522]
[1673599466533,11.82006055,1408.5,1408.3,2.82377522]
[1673599467370,11.82006055,1408.5,1408.3,2.82143357]
[1673599467897,11.82006055,1408.5,1408.2,26.44835326]
[1673599468110,11.82006055,1408.5,1408.2,27.81535391]
[1673599468514,18.91984055,1408.5,1408.2,27.81535391]
[1673599468918,18.91984055,1408.5,1408.2,20.71425391]
[1673599469332,11.82006055,1408.5,1408.2,20.71425391]
[1673599470823,18.91988055,1408.5,1408.2,20.71425391]
[1673599471801,18.91988055,1408.5,1408.2,19.12044911]
[1673599472176,18.91988055,1408.5,1408.2,20.71425391]
[1673599472968,18.91988055,1408.5,1408.2,19.12044911]
[1673599473118,18.91988055,1408.5,1408.2,15.26462256]
[1673599474015,18.91988055,1408.5,1408.2,8.16352256]
[1673599474433,26.01970055,1408.5,1408.2,8.16352256]
[1673599475483,26.01970055,1408.5,1408.2,1.06246256]
[1673599477296,26.01970055,1408.5,1408.2,2.65626736]
[1673599478176,26.01970055,1408.5,1408.2,9.75749736]
[1673599478355,18.91988055,1408.5,1408.3,1.06246256]
[1673599480690,0.11356055,1408.5,1408.3,9.7540469]
[1673599480885,0.01456055,1408.5,1408.3,9.7540469]
[1673599481421,0.01456055,1408.5,1408.3,8.1602421]
[1673599482420,0.01456055,1408.5,1408.3,9.7540469]
[1673599482647,0.01456055,1408.5,1408.3,8.1602421]
[1673599483099,0.01456055,1408.5,1408.3,8.6944448]
[1673599483313,0.01456055,1408.5,1408.3,11.98384358]
[1673599484141,0.01456055,1408.5,1408.3,13.98384358]
[1673599484503,0.01456055,1408.5,1408.3,16.10884251]
[1673599484991,1.06412458,1408.6,1408.3,21.20959251]
[1673599485188,8.16338458,1408.6,1408.3,21.20959251]
[1673599485523,8.26238458,1408.6,1408.3,4.88320358]
[1673599485679,19.77746573,1408.6,1408.3,1.5938048]
[1673599486418,20.05028323,1408.6,1408.3,1.5938048]
[1673599487252,20.05028323,1408.6,1408.3,3.35497298]
[1673599488095,20.06484378,1408.6,1408.3,3.35497298]
[1673599488308,33.54834517,1408.6,1408.3,3.35497298]
[1673599488518,3.35483452,1408.5,1408.3,3.35497298]
[1673599488762,17.55462452,1408.5,1408.3,3.35497298]
[1673599489042,17.65362452,1408.5,1408.3,3.35497298]
[1673599490439,18.7177491,1408.5,1408.4,1.76116818]
[1673599490951,18.7177491,1408.5,1408.3,2.824617]
[1673599491157,18.7177491,1408.5,1408.4,1.76116818]
[1673599491368,18.7177491,1408.5,1408.3,4.4844218]
[1673599491585,18.7177491,1408.5,1408.4,1.76116818]
[1673599492879,31.66952049,1408.5,1408.3,1.06344882]
[1673599493033,31.66952049,1408.5,1408.2,1.06344882]
[1673599493034,23.30225,1408.3,1408.2,1.06344882]
[1673599493242,21.40125,1408.3,1408.2,1.76147849]
[1673599494712,21.40125,1408.3,1408.1,2.82492731]
[1673599494974,2.140125,1408.2,1408.1,2.82492731]
[1673599495147,2.140125,1408.2,1408.1,1.06344882]
[1673599495363,9.241385,1408.2,1408.1,2.82492731]
[1673599495582,9.340385,1408.2,1408.1,1.06344882]
[1673599495796,9.340385,1408.2,1408.1,2.82492731]
[1673599495797,16.441645,1408.2,1408.1,2.82492731]
[1673599496127,16.441645,1408.2,1408.1,1.06344882]
[1673599496347,16.441645,1408.2,1408.1,1.76147849]
[1673599496554,16.441645,1408.2,1408.0,4.48473211]
[1673599496770,16.441645,1408.2,1408.1,1.76147849]
[1673599497823,16.441645,1408.2,1408.1,2.82492731]
[1673599498242,16.441645,1408.2,1408.1,1.76147849]
[1673599498616,9.340385,1408.2,1408.1,2.82492731]
[1673599499816,34.02544604,1408.2,1408.0,0.066]
[1673599500027,26.72238515,1408.1,1407.9,0.07152872]
[1673599500193,26.82138515,1408.1,1407.9,0.07152872]
[1673599500408,31.07693967,1408.1,1407.9,0.07152872]
[1673599501812,26.82138515,1408.1,1407.9,0.07152872]
[1673599502025,1.515,1408.0,1407.9,0.07152872]
[1673599502256,25.65544852,1408.0,1407.9,1.83331836]
[1673599502396,25.75444852,1408.0,1407.9,1.83331836]
[1673599502975,0.099,1408.0,1407.9,1.83331836]
[1673599503144,14.31747055,1408.1,1407.9,2.89676718]
[1673599503371,21.41966055,1408.1,1408.0,1.76178964]
[1673599503991,21.41966055,1408.1,1407.9,1.13497754]
[1673599504249,23.97820743,1408.1,1407.9,1.13497754]
[1673599504460,23.97820743,1408.1,1408.0,1.76164219]
[1673599504750,0.099,1408.1,1408.0,1.76164219]
[1673599505037,21.30458,1408.2,1408.0,1.76164219]
[1673599505038,21.40358,1408.2,1408.0,1.76164219]
[1673599505240,7.20036,1408.2,1408.0,1.76164219]
[1673599505453,0.099,1408.2,1408.0,1.06344882]
[1673599505668,35.01190888,1408.3,1408.0,1.76153049]
[1673599507870,35.01190888,1408.3,1408.0,2.82497931]
[1673599508045,35.01190888,1408.3,1408.1,1.76149538]
[1673599508785,35.54450888,1408.3,1408.1,1.76149538]
[1673599509005,35.01190888,1408.3,1408.1,1.76149538]
[1673599509719,33.50590888,1408.3,1408.1,1.76149538]
[1673599513450,33.45590888,1408.3,1408.1,1.76149538]
[1673599515434,33.45590888,1408.3,1408.0,9.94849962]
[1673599515654,33.45590888,1408.3,1408.0,9.88249962]
[1673599515808,33.45590888,1408.3,1408.1,1.76149374]
[1673599516807,33.45590888,1408.3,1408.0,8.23169882]
[1673599517016,33.45590888,1408.3,1408.0,10.81819964]
[1673599517331,33.45590888,1408.3,1408.1,1.76150757]
[1673599517856,40.55693888,1408.3,1408.0,0.066]
[1673599518073,40.55693888,1408.3,1407.9,9.83135234]
[1673599518293,40.55693888,1408.3,1408.0,1.76157375]
[1673599521790,41.08953888,1408.3,1408.0,1.76157375]
[1673599522006,42.59353888,1408.3,1408.0,1.76157375]
[1673599522369,42.59353888,1408.3,1407.9,5.21760824]
[1673599522579,42.59353888,1408.3,1408.0,1.76158548]
[1673599522790,11.36075389,1408.2,1408.0,1.76158548]
[1673599523001,7.2004,1408.2,1408.0,1.76158548]
[1673599523417,7.2004,1408.2,1407.9,5.21760824]
[1673599523630,7.2004,1408.2,1408.0,1.76156884]
[1673599524521,7.2004,1408.2,1408.0,2.82501766]
[1673599524522,0.099,1408.2,1408.0,2.82501766]
[1673599524681,42.06095888,1408.3,1408.1,1.76148593]
[1673599524891,49.20132973,1408.3,1408.0,1.06344882]
[1673599525147,42.06095888,1408.3,1408.0,2.82493598]
[1673599525323,34.95990888,1408.3,1408.0,9.92717598]
[1673599525539,34.95990888,1408.3,1408.1,1.76148716]
[1673599528084,8.70379,1408.3,1408.1,2.92018524]
[1673599528271,0.099,1408.3,1408.2,2.58276482]
[1673599528485,30.38,1408.4,1408.2,11.44529495]
[1673599528486,0.099,1408.4,1408.2,11.44529495]
[1673599528721,7.19883,1408.5,1408.3,1.76126987]
[1673599529734,0.099,1408.5,1408.3,11.44246869]
[1673599529962,29.39479853,1408.6,1408.3,12.56360977]
[1673599530154,28.86229853,1408.6,1408.3,12.56360977]
[1673599530358,28.86229853,1408.6,1408.3,8.61775]
[1673599530575,30.73379754,1408.6,1408.3,8.61775]
[1673599530822,28.86229853,1408.6,1408.3,8.61775]
[1673599531034,29.13762798,1408.6,1408.3,8.61775]
[1673599531774,36.23706798,1408.6,1408.3,8.61775]
[1673599531992,36.23706798,1408.6,1408.3,1.517]
[1673599532837,0.37831389,1408.5,1408.3,1.517]
[1673599533145,0.37831389,1408.5,1408.3,5.10301007]
[1673599533307,0.37831389,1408.5,1408.3,7.52583597]
[1673599534400,0.37831389,1408.5,1408.2,31.91795882]
[1673599534615,0.37831389,1408.5,1408.3,1.76131222]
[1673599536932,0.37831389,1408.5,1408.3,8.86204222]
[1673599537174,0.37831389,1408.5,1408.3,9.92549104]
[1673599537367,0.37536834,1408.5,1408.3,8.86204222]
[1673599537581,0.37536834,1408.5,1408.3,12.62524361]
[1673599537826,0.37536834,1408.5,1408.3,14.98471164]
[1673599538188,0.37536834,1408.5,1408.3,31.76266046]
[1673599538401,0.37536834,1408.5,1408.4,3.27813241]
[1673599538683,0.37536834,1408.5,1408.4,10.37838241]
[1673599538830,0.37536834,1408.5,1408.4,13.7377117]
[1673599539898,0.37536834,1408.5,1408.4,12.2207117]
[1673599541919,0.37536834,1408.5,1408.4,19.3209617]
[1673599548862,0.37536834,1408.5,1408.3,12.69109361]
[1673599548863,1.66536834,1408.5,1408.3,12.69109361]
[1673599549013,1.66536834,1408.5,1408.3,8.86188222]
[1673599557200,1.66536834,1408.5,1408.3,1.76131222]
[1673599561496,8.76512834,1408.5,1408.3,1.76131222]
[1673599561830,8.86412834,1408.5,1408.3,1.76131222]
[1673599562735,8.87629722,1408.5,1408.3,1.76131222]
[1673599563776,13.46766859,1408.5,1408.3,1.76131222]
[1673599564247,14.53186824,1408.5,1408.3,1.76131222]
[1673599564455,8.87629722,1408.5,1408.3,1.76131222]
[1673599564973,9.94049687,1408.5,1408.3,1.76131222]
[1673599565582,8.87629722,1408.5,1408.3,1.76131222]
[1673599566144,9.94049687,1408.5,1408.3,1.76131222]
[1673599566362,9.94049687,1408.5,1408.3,2.82476104]
[1673599566664,8.63832799,1408.5,1408.3,2.82476104]
[1673599566826,0.47436834,1408.5,1408.4,3.76117994]
[1673599567179,0.47436834,1408.5,1408.4,8.86142994]
[1673599567180,0.37536834,1408.5,1408.4,8.86142994]
[1673599571881,0.37536834,1408.5,1408.4,10.37842994]
[1673599572121,0.37536834,1408.5,1408.4,17.47867994]
[1673599572279,0.37536834,1408.5,1408.4,18.54212876]
[1673599573230,0.37536834,1408.5,1408.4,28.38730419]
[1673599573444,0.37182418,1408.5,1408.4,42.83779266]
[1673599573705,0.099,1408.7,1408.5,0.29409667]
[1673599574011,1.06419965,1408.8,1408.6,24.33172]
[1673599574173,1.06419965,1408.8,1408.7,1.517]
[1673599577241,22.55294772,1408.9,1408.7,3.956753]
[1673599577641,1.06419965,1408.8,1408.7,3.956753]
[1673599578802,21.77598346,1408.9,1408.7,3.956753]
[1673599578803,22.84018311,1408.9,1408.7,3.956753]
[1673599579430,1.06419965,1408.8,1408.6,8.68205]
[1673599579639,8.16243965,1408.8,1408.6,1.517]
[1673599579890,8.26143965,1408.8,1408.6,1.517]
[1673599581004,1.16319965,1408.8,1408.6,1.517]
[1673599581218,1.06419965,1408.8,1408.6,1.517]
[1673599582575,1.06419965,1408.8,1408.6,8.61621]
[1673599582831,1.06419965,1408.8,1408.6,11.169386]
[1673599583576,29.94529267,1408.9,1408.6,11.169386]
[1673599583738,29.94529267,1408.9,1408.6,8.61621]
[1673599586882,1.06419965,1408.8,1408.6,8.61621]
[1673599587256,3.06419965,1408.8,1408.6,8.61621]
[1673599587409,3.06419965,1408.8,1408.6,1.517]
[1673599587626,1.06419965,1408.8,1408.6,1.517]
[1673599588926,17.54314619,1408.8,1408.6,1.517]
[1673599589145,1.75431462,1408.7,1408.6,1.517]
[1673599589358,24.74080619,1408.8,1408.6,1.517]
[1673599589721,24.74080619,1408.8,1408.5,1.81109667]
[1673599590409,17.64214619,1408.8,1408.5,1.81109667]
[1673599590891,15.64214619,1408.8,1408.5,1.81109667]
[1673599591106,17.23833306,1408.8,1408.5,1.81109667]
[1673599591319,21.86420072,1408.8,1408.5,1.81109667]
[1673599592521,21.8763696,1408.8,1408.5,1.81109667]
[1673599594395,20.28018273,1408.8,1408.5,1.81109667]
[1673599594714,21.8763696,1408.8,1408.5,1.81109667]
[1673599598399,1.06419965,1408.7,1408.5,1.81109667]
[1673599599428,1.06419965,1408.7,1408.5,0.29409667]
[1673599601751,3.06419965,1408.7,1408.5,0.29409667]
[1673599601916,1.06419965,1408.7,1408.5,0.29409667]
[1673599603177,2.66038652,1408.7,1408.5,0.29409667]
[1673599603387,1.06419965,1408.7,1408.5,0.29409667]
[1673599603603,2.66038652,1408.7,1408.5,0.29409667]
[1673599603824,1.06419965,1408.7,1408.5,0.29409667]
[1673599604034,3.71201708,1408.7,1408.5,0.29409667]
[1673599604278,12.40695395,1408.7,1408.5,0.29409667]
[1673599604483,12.50595395,1408.7,1408.5,0.29409667]
[1673599604700,1.06419965,1408.6,1408.5,0.29409667]
[1673599605218,19.60489395,1408.7,1408.5,0.29409667]
[1673599605540,12.50595395,1408.7,1408.5,0.29409667]
[1673599607813,19.60490395,1408.7,1408.5,0.29409667]
[1673599608473,12.50595395,1408.7,1408.5,0.29409667]
[1673599611242,8.26194965,1408.7,1408.5,0.29409667]
[1673599611402,1.16319965,1408.7,1408.5,0.29409667]
[1673599611623,1.06419965,1408.7,1408.5,7.39379667]
[1673599612191,1.06419965,1408.7,1408.5,15.5554553]
[1673599613713,1.06419965,1408.7,1408.5,22.6552053]
[1673599614602,1.06419965,1408.7,1408.6,1.76101242]
[1673599614795,1.06419965,1408.7,1408.6,8.86025242]
[1673599615154,1.06419965,1408.7,1408.6,7.09924]
[1673599616568,1.06419965,1408.7,1408.6,8.86025482]
[1673599617015,1.06419965,1408.7,1408.6,7.09924]
[1673599617448,1.06419965,1408.7,1408.6,8.86025361]
[1673599620985,2.6725554,1408.8,1408.6,8.85765478]
[1673599621232,2.6725554,1408.8,1408.6,14.19588117]
[1673599622761,1.07636853,1408.8,1408.6,14.19588117]
[1673599623193,1.07636853,1408.8,1408.6,15.2577898]
[1673599623402,1.07636853,1408.8,1408.6,14.19588117]
[1673599625836,1.07636853,1408.8,1408.6,20.97713686]
[1673599626049,2.85134772,1408.9,1408.7,5.27786992]
[1673599626268,1.15616085,1408.9,1408.8,1.76074634]
[1673599626436,1.15616085,1408.9,1408.8,8.8589637]
[1673599626767,0.0919612,1408.9,1408.8,8.8589637]
[1673599627546,0.0919612,1408.9,1408.8,7.09823]
[1673599627697,0.0919612,1408.9,1408.8,8.85895753]
[1673599627907,0.0919612,1408.9,1408.8,12.0530346]
[1673599628271,0.0919612,1408.9,1408.8,10.29230558]
[1673599629059,0.0919612,1408.9,1408.8,12.05302593]
[1673599629724,0.0919612,1408.9,1408.8,10.29230558]
[1673599629942,0.0919612,1408.9,1408.8,12.05299961]
[1673599630513,0.0919612,1408.9,1408.8,12.29230558]
[1673599630886,0.0919612,1408.9,1408.8,14.05297802]
[1673599631136,0.0919612,1408.9,1408.8,19.15120802]
[1673599631294,0.0919612,1408.9,1408.8,34.57516632]
[1673599631510,0.0919612,1408.9,1408.8,36.49677339]
[1673599631889,0.0919612,1408.9,1408.8,35.86054009]
[1673599632236,0.0919612,1408.9,1408.8,36.92244872]
[1673599632657,0.0919612,1408.9,1408.8,35.86054009]
[1673599635950,0.0919612,1408.9,1408.8,33.51051134]
[1673599637509,0.0919612,1408.9,1408.8,32.87702439]
[1673599638995,0.0919612,1408.9,1408.8,33.51051134]
[1673599642213,0.0919612,1408.9,1408.8,35.86269431]
[1673599643511,0.0919612,1408.9,1408.8,33.51051134]
[1673599643705,0.0919612,1408.9,1408.8,35.86251466]
[1673599646028,0.0919612,1408.9,1408.8,38.86251466]
[1673599647390,0.0919612,1408.9,1408.8,39.09251466]
[1673599655667,0.08993217,1408.9,1408.8,39.09251466]
[1673599657454,0.08993217,1408.9,1408.8,41.74728623]
[1673599658133,0.08993217,1408.9,1408.8,40.15442329]
[1673599659245,0.08993217,1408.9,1408.8,39.52093634]
[1673599659671,0.08993217,1408.9,1408.8,40.15442329]
[1673599659880,0.08993217,1408.9,1408.8,38.63742329]
[1673599663041,0.08993217,1408.9,1408.8,40.23028623]
[1673599665032,0.08993217,1408.9,1408.8,39.1683776]
[1673599665343,0.08993217,1408.9,1408.8,41.29220277]
[1673599666209,0.08993217,1408.9,1408.8,39.69933983]
[1673599666641,0.08993217,1408.9,1408.8,39.70133983]
[1673599666814,0.08993217,1408.9,1408.8,39.69933983]
[1673599667188,0.07778044,1409.0,1408.9,0.07130911]
[1673599667347,0.07778044,1409.0,1408.9,39.41964188]
[1673599667708,0.07778044,1409.0,1408.9,42.40525912]
[1673599668091,0.07426016,1409.0,1408.9,42.40525912]
[1673599668443,0.07426016,1409.0,1408.9,40.81467241]
[1673599668636,0.07426016,1409.0,1408.9,43.84867241]
[1673599669666,0.07426016,1409.0,1408.9,41.84867241]
[1673599670445,0.08568252,1409.1,1409.0,0.03914933]
[1673599670649,0.08568252,1409.1,1409.0,36.69309154]
[1673599670811,0.08568252,1409.1,1409.0,47.22058181]
[1673599671361,0.08568252,1409.1,1409.0,46.58709486]
[1673599671574,0.08568252,1409.1,1409.0,44.57043417]
[1673599671789,0.08568252,1409.1,1409.0,42.65183434]
[1673599671998,0.08568252,1409.1,1409.0,39.01471622]
[1673599672387,0.08568252,1409.1,1409.0,40.07449336]
[1673599672632,0.08568252,1409.1,1409.0,34.62662495]
[1673599673428,0.08568252,1409.1,1409.0,4.15182509]
[1673599673429,1.37568252,1409.1,1409.0,4.15182509]
[1673599673647,1.37568252,1409.1,1409.0,1.79982177]
[1673599676373,0.08568252,1409.1,1409.0,15.99428177]
[1673599677023,0.08568252,1409.1,1409.0,17.05405891]
[1673599677845,0.08568252,1409.1,1409.0,15.99428177]
[1673599678060,0.08568252,1409.1,1409.0,28.36157163]
[1673599678350,0.08568252,1409.1,1409.0,32.23186972]
[1673599678530,0.08568252,1409.1,1409.0,34.58387304]
[1673599679420,0.08568252,1409.1,1409.0,33.97992304]
[1673599679677,0.08568252,1409.1,1409.0,34.58387304]
[1673599680718,0.08568252,1409.1,1409.0,33.97992304]
[1673599681781,0.08568252,1409.1,1409.0,34.58387304]
[1673599682786,0.08568252,1409.1,1409.0,36.17327321]
[1673599683242,0.08568252,1409.1,1409.0,35.56932321]
[1673599683735,0.08568252,1409.1,1409.0,36.17327321]
[1673599684098,0.08568252,1409.1,1409.0,23.61634495]
[1673599684267,0.08568252,1409.1,1409.0,21.26434163]
[1673599684476,0.08568252,1409.1,1409.0,10.56077891]
[1673599684679,0.08568252,1409.1,1409.0,1.79982177]
[1673599685349,0.08568252,1409.1,1409.0,8.89705177]
[1673599685743,0.08568252,1409.1,1409.0,1.79982177]
[1673599686875,0.08568252,1409.1,1409.0,8.89705177]
[1673599688436,0.08568252,1409.1,1409.0,8.89905177]
[1673599688650,0.08568252,1409.1,1409.0,8.89705177]
[1673599689517,0.08568252,1409.1,1409.0,15.99428177]
[1673599690356,0.08568252,1409.1,1409.0,17.05405891]
[1673599690538,0.08568252,1409.1,1409.0,15.99428177]
[1673599691309,0.08568252,1409.1,1409.0,17.05405891]
[1673599691523,0.08568252,1409.1,1409.0,2.85959891]
[1673599691839,9.76360217,1409.1,1409.0,0.03914933]
[1673599692027,30.77885876,1409.1,1409.0,0.03914933]
[1673599692475,32.57123853,1409.1,1409.0,0.03914933]
[1673599692791,32.56823853,1409.1,1409.0,0.03914933]
[1673599693006,32.57123853,1409.1,1409.0,0.03914933]
[1673599693217,26.73701286,1409.1,1409.0,0.03914933]
[1673599693849,27.26931286,1409.1,1409.0,0.03914933]
[1673599694066,28.86549973,1409.1,1409.0,0.03914933]
[1673599694222,27.26931286,1409.1,1409.0,0.03914933]
[1673599694432,27.07311996,1409.1,1409.0,0.03914933]
[1673599695539,27.26937251,1409.1,1409.0,0.03914933]
[1673599696123,27.07311996,1409.1,1409.0,0.03914933]
[1673599700227,26.54081996,1409.1,1409.0,0.03914933]
[1673599704539,25.47662031,1409.1,1409.0,0.03914933]
[1673599705361,26.54081996,1409.1,1409.0,0.03914933]
[1673599705784,25.47662031,1409.1,1409.0,0.03914933]
[1673599705994,9.76618031,1409.1,1409.0,0.03914933]
[1673599706257,7.28140252,1409.1,1409.0,0.03914933]
[1673599707279,0.18468252,1409.1,1409.0,0.03914933]
[1673599707493,0.08568252,1409.1,1409.0,0.03914933]
[1673599709822,0.08568252,1409.1,1408.8,22.35419714]
[1673599709988,0.08568252,1409.1,1408.9,1.76050063]
[1673599710772,0.08568252,1409.1,1408.9,4.17857041]
[1673599711091,0.08568252,1409.1,1408.9,2.41806978]
[1673599712143,0.08568252,1409.1,1408.8,22.42003714]
[1673599712298,0.08568252,1409.1,1408.9,1.76054714]